[Event "World Senior chT-50 2019"]
[Site "Rhodes"]
[Date "2019.04.18"]
[Round "3.26"]
[White "Viljava, Tapani"]
[Black "Schulz, Petra"]
[Result "1/2-1/2"]
[ECO "A20"]
[WhiteElo "2159"]
[BlackElo "2051"]
[PlyCount "57"]
[EventDate "2019.04.16"]
[EventType "team-tourn"]
[EventCountry "GRE"]
[TimeControl "40/5400+30:1800+30"]

1. g3 {[%emt 0:00:38]} Nf6 {[%emt 0:00:00]} 2. Bg2 {[%emt 0:00:10]} e5 {[%emt 0:03:03]} 3. c4 {[%emt 0:00:46]} d5 {[%emt 0:00:30]} 4. cxd5 {[%emt 0:01:30]} Nxd5 {[%emt 0:00:05]} 5. Nf3 {[%emt 0:00:52]} Nc6 {[%emt 0:00:12]} 6. O-O {[%emt 0:01:02]} Be7 {[%emt 0:00:28]} 7. d4 {[%emt 0:01:13]} exd4 {[%emt 0:03:13]} 8. Nxd4 {[%emt 0:02:00]} Nxd4 {[%emt 0:00:32]} 9. Qxd4 {[%emt 0:00:13]} Nf6 {[%emt 0:00:12]} 10. Qa4+ {[%emt 0:07:53]} Qd7 {[%emt 0:02:17]} 11. Qc2 {[%emt 0:05:13]} c6 {[%emt 0:04:39]} 12. Nc3 {[%emt 0:05:48]} O-O {[%emt 0:02:51]} 13. e4 {[%emt 0:01:16]} Qe6 {[%emt 0:11:08]} 14. b3 {[%emt 0:05:23]} Re8 {[%emt 0:13:16]} 15. Bb2 {[%emt 0:00:44]} Bd7 {[%emt 0:08:30]} 16. h3 {[%emt 0:12:37]} Rad8 {[%emt 0:08:18]} 17. f4 {[%emt 0:05:29]} Bc8 {[%emt 0:08:34]} 18. e5 {[%emt 0:05:06]} Nd7 {[%emt 0:01:36]} 19. Ne4 {[%emt 0:00:47]} Qh6 {[%emt 0:05:42]} 20. Rae1 {[%emt 0:10:56]} Bb4 {[%emt 0:09:23]} 21. Re2 {[%emt 0:01:29]} g6 {[%emt 0:05:35]} 22. a3 {[%emt 0:04:56]} Be7 {[%emt 0:00:33]} 23. f5 {[%emt 0:08:52]} gxf5 {[%emt 0:00:26]} 24. Rxf5 {[%emt 0:00:09]} Nf8 {[%emt 0:04:46]} 25. Nf6+ {[%emt 0:00:49]} Bxf6 {[%emt 0:00:09]} 26. Rxf6 {[%emt 0:00:11]} Qg5 {[%emt 0:01:40]} 27. e6 {[%emt 0:03:42]} Nxe6 {[%emt 0:01:02]} 28. Ref2 {[%emt 0:00:30]} Re7 {[%emt 0:01:10]} 29. R6f5 {[%emt 0:06:44]} 1/2-1/2

[Event "World Senior chT-50 2019"]
[Site "Rhodes"]
[Date "2019.04.18"]
[Round "3.28"]
[White "Fieandt, John"]
[Black "Jeske, Kirsten"]
[Result "1/2-1/2"]
[ECO "A92"]
[WhiteElo "2151"]
[BlackElo "1951"]
[Annotator "NA"]
[PlyCount "73"]
[EventDate "2019.04.16"]
[EventType "team-tourn"]
[EventCountry "GRE"]
[SourceTitle "playchess.com"]
[Source "ChessBase"]
[SourceQuality "1"]
[WhiteTeam "Finland"]
[BlackTeam "Germany"]
[WhiteTeamCountry "FIN"]
[BlackTeamCountry "GER"]
[TimeControl "40/5400+30:1800+30"]

1. Nf3 {[%emt 0:00:00]} d5 {[%emt 0:00:01]} 2. d4 {[%emt 0:00:13]} e6 {[%emt 0:01:03]} 3. c4 {[%emt 0:01:30]} f5 {[%emt 0:01:57]} 4. g3 {[%emt 0:05:23]} Nf6 {[%emt 0:02:20]} 5. Bg2 {[%emt 0:00:10]} c6 {[%emt 0:01:35]} 6. O-O {[%emt 0:02:35]} Be7 {[%emt 0:02:30]} 7. Qc2 {[%emt 0:05:50]} O-O {[%emt 0:03:32]} 8. Nbd2 {[%emt 0:04:45]} Ne4 {[%emt 0:03:54]} 9. Ne1 {[%emt 0:05:21]} Nxd2 {[%emt 0:06:50]} 10. Bxd2 {[%emt 0:01:03]} Bf6 {[%emt 0:00:50]} 11. Nf3 {[%emt 0:08:41]} g6 {[%emt 0:07:05]} 12. Rac1 {[%emt 0:04:20]} Nd7 {[%emt 0:04:41]} 13. Rfd1 {[%emt 0:06:02]} Qe7 {[%emt 0:08:06]} 14. Qb3 {[%emt 0:03:56]} Re8 {[%emt 0:01:27]} 15. Bb4 {[%emt 0:04:44]} Qf7 {[%emt 0:00:57]} 16. Bd6 {[%emt 0:03:46]} Nb6 {[%emt 0:12:48]} 17. c5 {[%emt 0:03:23]} Nc4 {[%emt 0:01:03]} 18. Bf4 {[%emt 0:00:51]} e5 {[%emt 0:01:20]} 19. dxe5 {[%emt 0:01:32]} Nxe5 {[%emt 0:00:47]} 20. Bxe5 {[%emt 0:04:17]} Bxe5 {[%emt 0:00:13]} 21. Nxe5 {[%emt 0:00:16]} Rxe5 {[%emt 0:00:10]} 22. e3 {[%emt 0:00:03]} Re7 {[%emt 0:05:53]} 23. Rd4 {[%emt 0:01:29]} Be6 {[%emt 0:03:36]} 24. Qc3 {[%emt 0:02:23]} Rae8 {[%emt 0:02:36]} 25. Ra4 {[%emt 0:03:15]} a6 {[%emt 0:03:13]} 26. Rd4 {[%emt 0:00:11]} Qg7 {[%emt 0:02:33]} 27. h4 {[%emt 0:00:59]} h6 {[%emt 0:01:33]} 28. a4 {[%emt 0:04:29]} g5 {[%emt 0:02:27]} 29. Rb4 {[%emt 0:01:23]} Qxc3 {[%emt 0:03:34]} 30. Rxc3 {[%emt 0:00:04]} Bc8 {[%emt 0:00:09]} 31. hxg5 {[%emt 0:02:57]} hxg5 {[%emt 0:00:07]} 32. Bf3 {[%emt 0:00:23]} Kg7 {[%emt 0:02:05]} 33. Rd4 {[%emt 0:01:01]} Kf6 {[%emt 0:00:44]} 34. Rb3 {[%emt 0:02:46]} Rc7 {[%emt 0:00:54]} 35. Rb6 {[%emt 0:00:22]} Kg7 {[%emt 0:02:37]} 36. Kf1 {[%emt 0:03:52]} Rf8 {[%emt 0:02:48]} 37. Rb3 {[%emt 0:01:43]} 1/2-1/2

[Event "World Senior chT-50 2019"]
[Site "Rhodes"]
[Date "2019.04.18"]
[Round "3.29"]
[White "Boensch, Uwe"]
[Black "Kristiansen, Erling"]
[Result "1-0"]
[ECO "E08"]
[WhiteElo "2525"]
[BlackElo "2134"]
[Annotator "ChessBase"]
[PlyCount "31"]
[EventDate "2019.04.16"]
[EventType "team-tourn"]
[EventCountry "GRE"]
[SourceTitle "playchess.com"]
[Source "ChessBase"]
[SourceQuality "1"]
[WhiteTeam "Germany"]
[BlackTeam "Norway"]
[WhiteTeamCountry "GER"]
[BlackTeamCountry "NOR"]
[TimeControl "40/5400+30:1800+30"]

1. d4 {[%emt 0:00:00]} d5 {[%emt 0:00:00]} 2. c4 {[%emt 0:00:00]} e6 {[%emt 0:00:15]} 3. Nf3 {[%emt 0:00:00]} Be7 {[%emt 0:00:17]} 4. g3 {[%emt 0:00:20]} Nf6 {[%emt 0:00:03]} 5. Bg2 {[%emt 0:00:05]} O-O {[%emt 0:00:31]} 6. Qc2 {[%emt 0:00:54]} Nbd7 {[%emt 0:00:54]} 7. O-O {[%emt 0:00:52]} c6 {[%emt 0:02:14]} 8. a4 {[%emt 0:04:33]} a5 {[%emt 0:02:09]} 9. b3 {[%emt 0:10:56]} b6 {[%emt 0:00:41]} 10. Nbd2 {[%emt 0:10:22]} Ba6 {[%emt 0:00:30]} 11. e4 {[%emt 0:02:26]} dxe4 {[%emt 0:00:40]} 12. Nxe4 {[%emt 0:01:37]} Rc8 {[%emt 0:00:59]} 13. Rd1 {[%emt 0:02:09]} b5 {[%emt 0:01:36]} 14. Ne5 {[%emt 0:03:50]} bxc4 {[%emt 0:00:56]} 15. Nxc6 {[%emt 0:03:09]} cxb3 {[%emt 0:00:01]} 16. Qxb3 {[%emt 0:00:40]} 1-0

[Event "World Senior chT-50 2019"]
[Site "Rhodes"]
[Date "2019.04.18"]
[Round "3.30"]
[White "Berg, Anders Hoyer"]
[Black "Stangl, Markus"]
[Result "1/2-1/2"]
[ECO "C09"]
[WhiteElo "2046"]
[BlackElo "2432"]
[PlyCount "86"]
[EventDate "2019.04.16"]
[EventType "team-tourn"]
[EventCountry "GRE"]
[TimeControl "40/5400+30:1800+30"]

1. e4 {[%emt 0:00:00]} c5 {[%emt 0:00:00]} 2. c3 {[%emt 0:00:02]} e6 {[%emt 0:00:00]} 3. d4 {[%emt 0:00:25]} d5 {[%emt 0:00:00]} 4. exd5 {[%emt 0:00:29]} exd5 {[%emt 0:00:13]} 5. Nf3 {[%emt 0:01:37]} Nc6 {[%emt 0:00:07]} 6. Bb5 {[%emt 0:01:59]} Bd6 {[%emt 0:00:44]} 7. dxc5 {[%emt 0:08:17]} Bxc5 {[%emt 0:00:14]} 8. O-O {[%emt 0:00:45]} Nge7 {[%emt 0:00:05]} 9. Nbd2 {[%emt 0:06:32]} O-O {[%emt 0:01:03]} 10. Nb3 {[%emt 0:00:25]} Bb6 {[%emt 0:00:06]} 11. Re1 {[%emt 0:08:03]} Nf5 {[%emt 0:01:17]} 12. Bf4 {[%emt 0:12:43]} Bxf2+ {[%emt 0:09:33]} 13. Kxf2 {[%emt 0:01:01]} Qb6+ {[%emt 0:00:08]} 14. Nbd4 {[%emt 0:04:43]} Nfxd4 {[%emt 0:01:40]} 15. Nxd4 {[%emt 0:01:28]} Nxd4 {[%emt 0:00:08]} 16. Qxd4 {[%emt 0:03:56]} Qxb5 {[%emt 0:00:19]} 17. Re2 {[%emt 0:00:46]} Bg4 {[%emt 0:06:09]} 18. Rd2 {[%emt 0:00:16]} Be6 {[%emt 0:00:08]} 19. Re1 {[%emt 0:05:36]} Rfc8 {[%emt 0:05:36]} 20. Be3 {[%emt 0:08:16]} Qc4 {[%emt 0:08:04]} 21. a3 {[%emt 0:04:51]} Rc6 {[%emt 0:03:44]} 22. Qe5 {[%emt 0:13:04]} Qh4+ {[%emt 0:02:19]} 23. Qg3 {[%emt 0:00:24]} Qxg3+ {[%emt 0:05:33]} 24. Kxg3 {[%emt 0:00:15]} Kf8 {[%emt 0:00:07]} 25. Bd4 {[%emt 0:02:51]} Bf5 {[%emt 0:00:29]} 26. Kf4 {[%emt 0:04:33]} Be4 {[%emt 0:01:15]} 27. Re3 {[%emt 0:02:28]} b6 {[%emt 0:02:16]} 28. Rg3 {[%emt 0:00:58]} f6 {[%emt 0:00:28]} 29. h4 {[%emt 0:03:10]} Re8 {[%emt 0:00:27]} 30. Re3 {[%emt 0:01:24]} g5+ {[%emt 0:02:55]} 31. hxg5 {[%emt 0:03:04]} fxg5+ {[%emt 0:00:09]} 32. Kg3 {[%emt 0:00:35]} Kf7 {[%emt 0:00:42]} 33. Rf2+ {[%emt 0:00:26]} Kg6 {[%emt 0:00:06]} 34. Re1 {[%emt 0:00:27]} h5 {[%emt 0:00:07]} 35. Ref1 {[%emt 0:00:27]} Re7 {[%emt 0:02:42]} 36. Rf6+ {[%emt 0:00:56]} Rxf6 {[%emt 0:00:06]} 37. Rxf6+ {[%emt 0:00:04]} Kh7 {[%emt 0:00:03]} 38. Rf8 {[%emt 0:01:03]} h4+ {[%emt 0:01:16]} 39. Kg4 {[%emt 0:00:34]} Re6 {[%emt 0:13:14]} 40. Rf7+ {[%emt 0:00:00]} Kh6 {[%emt 0:00:00]} 41. Rf6+ {[%emt 0:05:40]} Rxf6 {[%emt 0:03:01]} 42. Bxf6 {[%emt 0:00:03]} Kg6 {[%emt 0:01:23]} 43. Bxg5 {[%emt 0:00:49]} Bxg2 {[%emt 0:00:12]} 1/2-1/2

[Event "World Senior chT-50 2019"]
[Site "Rhodes"]
[Date "2019.04.18"]
[Round "3.31"]
[White "Brendel, Oliver"]
[Black "Johnsen, Sylvia"]
[Result "1-0"]
[ECO "A26"]
[WhiteElo "2339"]
[BlackElo "1949"]
[PlyCount "53"]
[EventDate "2019.04.16"]
[EventType "team-tourn"]
[EventCountry "GRE"]
[TimeControl "40/5400+30:1800+30"]

1. c4 {[%emt 0:00:00]} e5 {[%emt 0:00:00]} 2. g3 {[%emt 0:00:02]} Nc6 {[%emt 0:00:00]} 3. Nc3 {[%emt 0:00:26]} g6 {[%emt 0:00:25]} 4. Bg2 {[%emt 0:00:37]} Bg7 {[%emt 0:00:06]} 5. e4 {[%emt 0:00:21]} d6 {[%emt 0:00:21]} 6. Nge2 {[%emt 0:00:11]} Nf6 {[%emt 0:02:48]} 7. d3 {[%emt 0:00:32]} O-O {[%emt 0:01:19]} 8. O-O {[%emt 0:01:13]} a5 {[%emt 0:02:23]} 9. Nd5 {[%emt 0:01:46]} Nxd5 {[%emt 0:04:20]} 10. cxd5 {[%emt 0:00:08]} Ne7 {[%emt 0:01:22]} 11. Be3 {[%emt 0:04:51]} f5 {[%emt 0:07:32]} 12. Qd2 {[%emt 0:02:20]} Rf7 {[%emt 0:00:50]} 13. Rac1 {[%emt 0:03:11]} Bd7 {[%emt 0:05:26]} 14. f4 {[%emt 0:12:22]} c5 {[%emt 0:05:35]} 15. fxe5 {[%emt 0:17:24]} Bxe5 {[%emt 0:00:24]} 16. d4 {[%emt 0:00:19]} cxd4 {[%emt 0:02:18]} 17. Nxd4 {[%emt 0:01:21]} a4 {[%emt 0:08:01]} 18. Qb4 {[%emt 0:10:49]} b5 {[%emt 0:05:40]} 19. Nc6 {[%emt 0:02:49]} Qe8 {[%emt 0:12:19]} 20. Nxe5 {[%emt 0:00:54]} dxe5 {[%emt 0:00:20]} 21. Bg5 {[%emt 0:06:18]} Nc8 {[%emt 0:03:44]} 22. d6 {[%emt 0:10:30]} Rb8 {[%emt 0:03:11]} 23. Rc7 {[%emt 0:05:26]} Qe6 {[%emt 0:03:14]} 24. Qc5 {[%emt 0:02:59]} f4 {[%emt 0:02:01]} 25. gxf4 {[%emt 0:00:21]} Nxd6 {[%emt 0:00:24]} 26. f5 {[%emt 0:02:11]} gxf5 {[%emt 0:04:22]} 27. exf5 {[%emt 0:00:11]} 1-0

[Event "World Senior chT-50 2019"]
[Site "Rhodes"]
[Date "2019.04.18"]
[Round "3.32"]
[White "Harstad, Christian"]
[Black "Maier, Christian"]
[Result "0-1"]
[ECO "D38"]
[WhiteElo "1911"]
[BlackElo "2325"]
[PlyCount "82"]
[EventDate "2019.04.16"]
[EventType "team-tourn"]
[EventCountry "GRE"]
[TimeControl "40/5400+30:1800+30"]

1. d4 {[%emt 0:00:00]} Nf6 {[%emt 0:00:00]} 2. c4 {[%emt 0:00:00]} e6 {[%emt 0:00:00]} 3. Nc3 {[%emt 0:00:00]} d5 {[%emt 0:00:18]} 4. Bg5 {[%emt 0:00:24]} Bb4 {[%emt 0:00:36]} 5. e3 {[%emt 0:03:21]} O-O {[%emt 0:01:30]} 6. Nf3 {[%emt 0:01:24]} c5 {[%emt 0:01:49]} 7. a3 {[%emt 0:03:16]} Bxc3+ {[%emt 0:02:44]} 8. bxc3 {[%emt 0:00:18]} Nbd7 {[%emt 0:01:21]} 9. cxd5 {[%emt 0:10:48]} exd5 {[%emt 0:00:59]} 10. Nd2 {[%emt 0:09:35]} Qa5 {[%emt 0:05:55]} 11. Qc2 {[%emt 0:06:06]} Ne4 {[%emt 0:04:05]} 12. Nxe4 {[%emt 0:10:05]} dxe4 {[%emt 0:00:08]} 13. Bf4 {[%emt 0:02:55]} cxd4 {[%emt 0:01:20]} 14. exd4 {[%emt 0:00:39]} Nf6 {[%emt 0:01:08]} 15. Bd2 {[%emt 0:03:58]} Qh5 {[%emt 0:08:50]} 16. Be2 {[%emt 0:03:45]} Qg6 {[%emt 0:01:29]} 17. O-O-O {[%emt 0:09:48]} Be6 {[%emt 0:03:19]} 18. g4 {[%emt 0:06:43]} Rac8 {[%emt 0:07:15]} 19. f4 {[%emt 0:02:37]} Bxg4 {[%emt 0:02:43]} 20. Rdg1 {[%emt 0:06:37]} Qf5 {[%emt 0:12:39]} 21. Bxg4 {[%emt 0:05:50]} Nxg4 {[%emt 0:00:07]} 22. Rg2 {[%emt 0:00:16]} g6 {[%emt 0:01:44]} 23. h3 {[%emt 0:02:31]} Nf6 {[%emt 0:00:42]} 24. Rg5 {[%emt 0:00:56]} Qd7 {[%emt 0:01:40]} 25. f5 {[%emt 0:01:40]} Rfe8 {[%emt 0:01:42]} 26. fxg6 {[%emt 0:00:32]} fxg6 {[%emt 0:00:43]} 27. Rf1 {[%emt 0:01:44]} Rc6 {[%emt 0:01:14]} 28. Qb3+ {[%emt 0:02:10]} Kh8 {[%emt 0:00:59]} 29. Be3 {[%emt 0:01:29]} Qxh3 {[%emt 0:00:25]} 30. Re1 {[%emt 0:01:16]} Rec8 {[%emt 0:05:46]} 31. Rc5 {[%emt 0:00:24]} Qd7 {[%emt 0:03:38]} 32. Bf4 {[%emt 0:01:01]} Rxc5 {[%emt 0:01:05]} 33. dxc5 {[%emt 0:00:08]} Rxc5 {[%emt 0:00:12]} 34. Be3 {[%emt 0:01:29]} Rf5 {[%emt 0:07:35]} 35. Rd1 {[%emt 0:01:05]} Qe7 {[%emt 0:00:18]} 36. Qa4 {[%emt 0:01:25]} a6 {[%emt 0:03:23]} 37. Kb2 {[%emt 0:00:44]} h5 {[%emt 0:00:31]} 38. Qc4 {[%emt 0:00:21]} Kh7 {[%emt 0:02:09]} 39. Bd4 {[%emt 0:00:34]} e3 {[%emt 0:02:57]} 40. Re1 {[%emt 0:00:00]} Ng4 {[%emt 0:00:00]} 41. Qc8 {[%emt 0:05:10]} Kh6 {[%emt 0:07:53]} 0-1

[Event "World Senior chT-50 2019"]
[Site "Rhodes"]
[Date "2019.04.18"]
[Round "3.33"]
[White "Mahia, Gustavo"]
[Black "Lagerborg, Krister"]
[Result "1-0"]
[ECO "A46"]
[WhiteElo "2367"]
[BlackElo "2102"]
[PlyCount "73"]
[EventDate "2019.04.16"]
[EventType "team-tourn"]
[EventCountry "GRE"]
[TimeControl "40/5400+30:1800+30"]

1. d4 {[%emt 0:00:00]} Nf6 {[%emt 0:00:00]} 2. Bg5 {[%emt 0:00:00]} c6 {[%emt 0:00:00]} 3. Nd2 {[%emt 0:02:35]} d6 {[%emt 0:00:37]} 4. e4 {[%emt 0:01:00]} Nbd7 {[%emt 0:01:04]} 5. Ngf3 {[%emt 0:02:31]} h6 {[%emt 0:09:12]} 6. Bh4 {[%emt 0:02:17]} g5 {[%emt 0:02:13]} 7. Bg3 {[%emt 0:00:05]} Nh5 {[%emt 0:00:52]} 8. Bc4 {[%emt 0:02:39]} Bg7 {[%emt 0:06:14]} 9. c3 {[%emt 0:01:45]} b5 {[%emt 0:07:51]} 10. Be2 {[%emt 0:03:05]} Nxg3 {[%emt 0:00:33]} 11. hxg3 {[%emt 0:00:12]} Nf6 {[%emt 0:03:22]} 12. a4 {[%emt 0:02:45]} Qb6 {[%emt 0:03:40]} 13. e5 {[%emt 0:09:59]} dxe5 {[%emt 0:03:06]} 14. Nxe5 {[%emt 0:00:29]} Be6 {[%emt 0:02:53]} 15. Bf3 {[%emt 0:02:05]} Nd5 {[%emt 0:05:15]} 16. Qe2 {[%emt 0:07:56]} Rd8 {[%emt 0:05:07]} 17. Ng6 {[%emt 0:06:59]} Rg8 {[%emt 0:04:19]} 18. Ne5 {[%emt 0:02:47]} bxa4 {[%emt 0:04:24]} 19. Ndc4 {[%emt 0:04:07]} Qb5 {[%emt 0:01:08]} 20. O-O {[%emt 0:06:36]} Bf6 {[%emt 0:05:44]} 21. Qc2 {[%emt 0:01:40]} c5 {[%emt 0:09:10]} 22. Rxa4 {[%emt 0:05:44]} Bxe5 {[%emt 0:03:16]} 23. Nxe5 {[%emt 0:00:24]} cxd4 {[%emt 0:02:13]} 24. c4 {[%emt 0:01:57]} d3 {[%emt 0:10:03]} 25. Nxd3 {[%emt 0:02:15]} Rc8 {[%emt 0:04:03]} 26. Ne5 {[%emt 0:08:42]} Qb8 {[%emt 0:00:26]} 27. Re1 {[%emt 0:02:28]} Nb6 {[%emt 0:02:39]} 28. Ra6 {[%emt 0:04:06]} g4 {[%emt 0:01:28]} 29. Qh7 {[%emt 0:02:10]} Rf8 {[%emt 0:01:04]} 30. Bxg4 {[%emt 0:09:22]} Bxg4 {[%emt 0:01:43]} 31. Nxg4 {[%emt 0:00:01]} Rc6 {[%emt 0:00:02]} 32. Qf5 {[%emt 0:01:46]} Qc8 {[%emt 0:01:16]} 33. Qb5 {[%emt 0:01:14]} Kd8 {[%emt 0:00:52]} 34. Rxa7 {[%emt 0:00:27]} f5 {[%emt 0:00:35]} 35. Ne5 {[%emt 0:00:20]} Re6 {[%emt 0:00:34]} 36. Rd1+ {[%emt 0:00:14]} Rd6 {[%emt 0:00:15]} 37. Qxb6+ {[%emt 0:00:08]} 1-0

[Event "World Senior chT-50 2019"]
[Site "Rhodes"]
[Date "2019.04.18"]
[Round "3.36"]
[White "Johansson, Bjorn"]
[Black "Grushka, Carlos"]
[Result "0-1"]
[ECO "A20"]
[WhiteElo "1888"]
[BlackElo "2251"]
[Annotator "NA"]
[PlyCount "64"]
[EventDate "2019.04.16"]
[EventType "team-tourn"]
[EventCountry "GRE"]
[SourceTitle "playchess.com"]
[Source "ChessBase"]
[SourceQuality "1"]
[WhiteTeam "Sweden"]
[BlackTeam "Argentina"]
[WhiteTeamCountry "SWE"]
[BlackTeamCountry "ARG"]
[TimeControl "40/5400+30:1800+30"]

1. c4 {[%emt 0:00:00]} e6 {[%emt 0:00:00]} 2. g3 {[%emt 0:00:00]} d5 {[%emt 0:00:00]} 3. Bg2 {[%emt 0:00:28]} c5 {[%emt 0:00:08]} 4. cxd5 {[%emt 0:00:21]} exd5 {[%emt 0:00:07]} 5. d4 {[%emt 0:00:09]} cxd4 {[%emt 0:04:31]} 6. Nf3 {[%emt 0:01:21]} Bb4+ {[%emt 0:01:01]} 7. Bd2 {[%emt 0:00:16]} Bc5 {[%emt 0:00:26]} 8. b4 {[%emt 0:02:23]} Bb6 {[%emt 0:01:18]} 9. O-O {[%emt 0:00:16]} a6 {[%emt 0:01:09]} 10. Qb3 {[%emt 0:01:30]} Nc6 {[%emt 0:01:32]} 11. a4 {[%emt 0:01:51]} Nge7 {[%emt 0:04:20]} 12. Na3 {[%emt 0:02:16]} O-O {[%emt 0:00:27]} 13. b5 {[%emt 0:08:54]} axb5 {[%emt 0:01:08]} 14. axb5 {[%emt 0:00:11]} Na5 {[%emt 0:00:29]} 15. Qb4 {[%emt 0:06:55]} Bf5 {[%emt 0:02:15]} 16. Nxd4 {[%emt 0:01:21]} Bxd4 {[%emt 0:00:43]} 17. Qxd4 {[%emt 0:00:10]} Nb3 {[%emt 0:00:08]} 18. Qb2 {[%emt 0:01:36]} Nxa1 {[%emt 0:00:17]} 19. Rxa1 {[%emt 0:00:11]} Be4 {[%emt 0:01:29]} 20. f3 {[%emt 0:01:03]} Bg6 {[%emt 0:00:27]} 21. Bc3 {[%emt 0:01:31]} Nf5 {[%emt 0:02:55]} 22. Nc2 {[%emt 0:02:02]} Qb6+ {[%emt 0:01:38]} 23. Nd4 {[%emt 0:00:39]} Rac8 {[%emt 0:02:16]} 24. Rd1 {[%emt 0:01:06]} Rc4 {[%emt 0:03:51]} 25. Kh1 {[%emt 0:00:57]} Ne3 {[%emt 0:01:26]} 26. Rd2 {[%emt 0:02:15]} Rfc8 {[%emt 0:00:23]} 27. Nc6 {[%emt 0:01:01]} bxc6 {[%emt 0:01:06]} 28. Bd4 {[%emt 0:02:07]} Rxd4 {[%emt 0:01:36]} 29. Rxd4 {[%emt 0:00:33]} Qxb5 {[%emt 0:01:14]} 30. Rb4 {[%emt 0:00:24]} Qa5 {[%emt 0:00:06]} 31. Bh3 {[%emt 0:00:41]} f5 {[%emt 0:01:07]} 32. Kg1 {[%emt 0:00:42]} c5 {[%emt 0:00:12]} 0-1

[Event "World Senior chT-50 2019"]
[Site "Rhodes"]
[Date "2019.04.18"]
[Round "3.37"]
[White "Genta, Alejandro"]
[Black "Grant, Jonathan I M"]
[Result "0-1"]
[ECO "E46"]
[WhiteElo "2054"]
[BlackElo "2226"]
[Annotator "NA"]
[PlyCount "54"]
[EventDate "2019.04.16"]
[EventType "team-tourn"]
[EventCountry "GRE"]
[SourceTitle "playchess.com"]
[Source "ChessBase"]
[SourceQuality "1"]
[WhiteTeam "Uruguay"]
[BlackTeam "Scotland"]
[WhiteTeamCountry "URU"]
[BlackTeamCountry "SCO"]
[TimeControl "40/5400+30:1800+30"]

1. d4 {[%emt 0:00:00]} Nf6 {[%emt 0:00:00]} 2. c4 {[%emt 0:00:00]} e6 {[%emt 0:00:00]} 3. Nc3 {[%emt 0:00:39]} Bb4 {[%emt 0:00:19]} 4. e3 {[%emt 0:00:04]} O-O {[%emt 0:00:46]} 5. Nge2 {[%emt 0:00:07]} Re8 {[%emt 0:00:07]} 6. a3 {[%emt 0:00:11]} Bf8 {[%emt 0:00:05]} 7. Ng3 {[%emt 0:05:37]} d6 {[%emt 0:04:16]} 8. Bd3 {[%emt 0:01:50]} Nbd7 {[%emt 0:00:35]} 9. O-O {[%emt 0:08:45]} a5 {[%emt 0:01:18]} 10. Rb1 {[%emt 0:00:22]} e5 {[%emt 0:02:47]} 11. b4 {[%emt 0:01:01]} g6 {[%emt 0:03:54]} 12. f4 {[%emt 0:03:44]} Bg7 {[%emt 0:02:11]} 13. Kh1 {[%emt 0:21:02]} c6 {[%emt 0:09:36]} 14. Bc2 {[%emt 0:16:59]} exd4 {[%emt 0:03:27]} 15. exd4 {[%emt 0:00:02]} Nb6 {[%emt 0:00:37]} 16. Bb3 {[%emt 0:04:47]} Ng4 {[%emt 0:04:27]} 17. Nce2 {[%emt 0:17:46]} axb4 {[%emt 0:17:58]} 18. axb4 {[%emt 0:00:03]} Qh4 {[%emt 0:01:11]} 19. h3 {[%emt 0:00:50]} Ne3 {[%emt 0:00:57]} 20. Bxe3 {[%emt 0:00:12]} Rxe3 {[%emt 0:00:02]} 21. Kh2 {[%emt 0:08:20]} Ra3 {[%emt 0:06:34]} 22. f5 {[%emt 0:00:16]} d5 {[%emt 0:08:44]} 23. Rf4 {[%emt 0:00:32]} Qe7 {[%emt 0:01:31]} 24. cxd5 {[%emt 0:01:52]} cxd5 {[%emt 0:01:15]} 25. Qc2 {[%emt 0:03:59]} Bh6 {[%emt 0:02:22]} 26. Rf2 {[%emt 0:01:40]} Qd6 {[%emt 0:01:44]} 27. Qc5 {[%emt 0:01:44]} Bf8 {[%emt 0:04:26]} 0-1

[Event "World Senior chT-50 2019"]
[Site "Rhodes"]
[Date "2019.04.18"]
[Round "3.38"]
[White "Farrell, Neil"]
[Black "Braso, Jorge"]
[Result "1/2-1/2"]
[ECO "D30"]
[WhiteElo "2132"]
[BlackElo "2098"]
[PlyCount "120"]
[EventDate "2019.04.16"]
[EventType "team-tourn"]
[EventCountry "GRE"]
[TimeControl "40/5400+30:1800+30"]

1. d4 {[%emt 0:00:00]} d5 {[%emt 0:00:00]} 2. c4 {[%emt 0:00:10]} e6 {[%emt 0:00:00]} 3. Nf3 {[%emt 0:00:30]} Nf6 {[%emt 0:00:00]} 4. g3 {[%emt 0:00:17]} c5 {[%emt 0:02:13]} 5. Bg2 {[%emt 0:00:26]} Be7 {[%emt 0:00:19]} 6. cxd5 {[%emt 0:06:41]} exd5 {[%emt 0:00:11]} 7. O-O {[%emt 0:00:14]} Nc6 {[%emt 0:00:54]} 8. dxc5 {[%emt 0:01:18]} Bxc5 {[%emt 0:01:26]} 9. Qc2 {[%emt 0:01:16]} Be7 {[%emt 0:01:24]} 10. Rd1 {[%emt 0:02:47]} Be6 {[%emt 0:04:20]} 11. Nc3 {[%emt 0:00:58]} O-O {[%emt 0:00:59]} 12. Be3 {[%emt 0:21:08]} Rc8 {[%emt 0:09:58]} 13. h3 {[%emt 0:03:26]} h6 {[%emt 0:10:46]} 14. Nd4 {[%emt 0:06:01]} Nxd4 {[%emt 0:03:58]} 15. Bxd4 {[%emt 0:00:19]} Qd7 {[%emt 0:01:20]} 16. Kh2 {[%emt 0:01:05]} Qc7 {[%emt 0:07:58]} 17. Rac1 {[%emt 0:14:36]} Rfd8 {[%emt 0:07:45]} 18. Qa4 {[%emt 0:04:07]} Qc6 {[%emt 0:29:00]} 19. Qxa7 {[%emt 0:02:00]} Ra8 {[%emt 0:01:59]} 20. Qb6 {[%emt 0:01:00]} Ra6 {[%emt 0:06:14]} 21. Qb3 {[%emt 0:01:23]} Qd7 {[%emt 0:02:38]} 22. Bxf6 {[%emt 0:14:39]} Bxf6 {[%emt 0:00:04]} 23. Bxd5 {[%emt 0:01:31]} Qe7 {[%emt 0:03:16]} 24. Bxe6 {[%emt 0:03:52]} Rxe6 {[%emt 0:00:05]} 25. Rxd8+ {[%emt 0:01:44]} Qxd8 {[%emt 0:00:05]} 26. Rd1 {[%emt 0:00:07]} Qc7 {[%emt 0:00:55]} 27. e3 {[%emt 0:02:06]} Rb6 {[%emt 0:00:42]} 28. Nb5 {[%emt 0:02:30]} Qe5 {[%emt 0:01:00]} 29. a4 {[%emt 0:00:41]} Qxb2 {[%emt 0:00:39]} 30. Rd8+ {[%emt 0:03:02]} Kh7 {[%emt 0:00:24]} 31. Qxb2 {[%emt 0:00:07]} Bxb2 {[%emt 0:00:07]} 32. Rd6 {[%emt 0:00:08]} Ra6 {[%emt 0:00:34]} 33. Rxa6 {[%emt 0:01:46]} bxa6 {[%emt 0:00:04]} 34. Nc7 {[%emt 0:00:34]} a5 {[%emt 0:00:12]} 35. Kg2 {[%emt 0:00:16]} Kg6 {[%emt 0:00:10]} 36. Kf3 {[%emt 0:00:18]} Kf5 {[%emt 0:00:20]} 37. Ke2 {[%emt 0:01:25]} Ke5 {[%emt 0:00:42]} 38. Kd3 {[%emt 0:00:36]} Kd6 {[%emt 0:00:19]} 39. Kc2 {[%emt 0:02:22]} Ba1 {[%emt 0:01:59]} 40. Nb5+ {[%emt 0:00:00]} Kc5 {[%emt 0:00:00]} 41. Kb3 {[%emt 0:01:15]} g6 {[%emt 0:01:42]} 42. Nc3 {[%emt 0:07:48]} f5 {[%emt 0:01:03]} 43. f3 {[%emt 0:01:20]} g5 {[%emt 0:00:39]} 44. f4 {[%emt 0:08:24]} gxf4 {[%emt 0:02:39]} 45. gxf4 {[%emt 0:00:06]} h5 {[%emt 0:02:37]} 46. h4 {[%emt 0:02:58]} Kd6 {[%emt 0:00:27]} 47. Kc4 {[%emt 0:01:51]} Bb2 {[%emt 0:00:20]} 48. e4 {[%emt 0:05:10]} fxe4 {[%emt 0:00:41]} 49. Nxe4+ {[%emt 0:00:10]} Ke6 {[%emt 0:00:30]} 50. Ng3 {[%emt 0:00:26]} Bf6 {[%emt 0:01:29]} 51. Nxh5 {[%emt 0:01:19]} Bxh4 {[%emt 0:00:10]} 52. Kb5 {[%emt 0:00:43]} Be1 {[%emt 0:01:20]} 53. Ng7+ {[%emt 0:00:29]} Kf6 {[%emt 0:00:23]} 54. Ne8+ {[%emt 0:00:06]} Kf5 {[%emt 0:00:07]} 55. Nd6+ {[%emt 0:00:06]} Kxf4 {[%emt 0:00:12]} 56. Nc4 {[%emt 0:00:06]} Ke4 {[%emt 0:00:35]} 57. Nxa5 {[%emt 0:00:07]} Kd5 {[%emt 0:00:14]} 58. Nc6 {[%emt 0:00:15]} Kd6 {[%emt 0:00:50]} 59. Nb4 {[%emt 0:00:52]} Bxb4 {[%emt 0:00:17]} 60. Kxb4 {[%emt 0:00:08]} Kd5 {[%emt 0:00:23]} 1/2-1/2